bitfinex/quotes_ETHUSD_20250314
["timestamp","ask_amount","ask_price","bid_price","bid_amount"]
[1741924676337,3.0,1891.5,1891.2,6.06011077]
[1741924680363,8.28681,1891.5,1891.2,6.06011077]
[1741924680757,0.3941,1891.7,1891.4,5.28705]
[1741924681074,5.28676,1891.6,1891.3,0.7774]
[1741924681269,5.28722,1891.4,1891.1,10.04]
[1741924682972,0.3941,1891.5,1890.9,0.7774]
[1741924683274,5.28809,1891.1,1890.7,5.8158]
[1741924684571,5.28809,1891.1,1890.7,11.10479]
[1741924685474,5.28809,1891.1,1890.7,5.8158]
[1741924685842,5.28809,1891.1,1890.7,11.10481]
[1741924686042,10.96963,1891.2,1890.7,11.10459]
[1741924686255,10.96963,1891.2,1890.7,16.3935]
[1741924686568,5.28794,1891.1,1890.7,11.10459]
[1741924686973,6.778823,1891.2,1890.8,5.28876]
[1741924688670,12.066723,1891.2,1890.7,11.10459]
[1741924689251,5.28795,1891.1,1890.7,11.10459]
[1741924689671,12.066583,1891.2,1890.7,11.10459]
[1741924690173,5.28793,1891.1,1890.7,11.10459]
[1741924691074,5.28793,1891.1,1890.7,6.09959]
[1741924691372,12.45763119,1891.2,1890.7,11.38843]
[1741924691773,12.45760119,1891.2,1890.8,5.28874]
[1741924691982,7.16974119,1891.2,1890.8,5.28874]
[1741924692147,12.45749119,1891.2,1890.8,5.28874]
[1741924693279,5.28792,1891.1,1890.7,6.09959]
[1741924695961,5.28822,1891.0,1890.7,0.8108]
[1741924696680,5.28792,1891.1,1890.7,6.0998]
[1741924697051,10.5761,1891.1,1890.7,6.0998]
[1741924697246,5.28792,1891.1,1890.7,6.0998]
[1741924697747,7.16962119,1891.2,1890.8,5.28871]
[1741924698585,5.68125,1891.4,1890.7,3.01211262]
[1741924698894,11.31674,1891.6,1891.2,5.2875]
[1741924698895,6.03,1891.6,1891.2,5.2875]
[1741924699098,3.0,1891.6,1891.3,5.28734]
[1741924699655,8.28653,1891.6,1891.2,5.2875]
[1741924700082,8.28653,1891.6,1891.2,5.2876]
[1741924700755,0.90810386,1891.6,1891.2,5.2874]
[1741924700956,0.90810386,1891.6,1891.3,5.28731]
[1741924701165,5.28614,1891.8,1891.4,6.10911]
[1741924701373,3.0,1891.8,1891.4,11.39599]
[1741924701791,3.0,1891.8,1891.4,6.10898]
[1741924702095,8.28608,1891.8,1891.4,6.10898]
[1741924702280,5.28629,1891.7,1891.4,0.8221]
[1741924702484,11.401339,1891.7,1891.4,0.8221]
[1741924702995,6.114919,1891.7,1891.4,0.8221]
[1741924705903,5.28629,1891.7,1891.4,0.8221]
[1741924706608,8.28602,1891.8,1891.4,6.10917]
[1741924706778,0.3941,1891.9,1891.5,5.004]
[1741924706983,5.28542,1892.0,1891.7,0.8221]
[1741924707183,5.2848,1892.3,1891.8,5.28584]
[1741924707402,5.67895,1892.2,1891.7,6.10828]
[1741924707607,5.67895,1892.2,1891.7,6.10809]
[1741924707913,5.67895,1892.2,1891.8,5.28586]
[1741924708478,10.96393,1892.2,1891.8,5.28586]
[1741924708777,5.67895,1892.2,1891.9,1.05243631]
[1741924709514,10.96397,1892.2,1891.9,1.05243631]
[1741924709684,5.67895,1892.2,1891.9,1.05243631]
[1741924709886,10.96406,1892.2,1891.9,1.05243631]
[1741924710082,5.67895,1892.2,1891.9,1.05243631]
[1741924710608,10.96393,1892.2,1891.9,1.05243631]
[1741924711107,5.28519,1892.1,1891.9,1.05243631]
[1741924715008,5.679,1892.2,1891.9,1.05243631]
[1741924716313,5.2849,1892.2,1891.9,1.05243631]
[1741924716479,6.0708477,1892.4,1891.9,2.51137594]
[1741924716685,5.67841,1892.4,1891.9,7.16296631]
[1741924716887,5.67841,1892.4,1891.9,12.44849631]
[1741924717205,5.28431,1892.4,1892.0,5.28537]
[1741924717584,6.08370873,1892.5,1892.1,6.11004]
[1741924717783,12.5792596,1892.5,1892.1,6.11004]
[1741924717989,5.2843,1892.4,1892.1,0.8251]
[1741924720109,3.0,1892.4,1892.1,0.8251]
[1741924720419,3.0,1892.4,1892.1,6.11012]
[1741924722500,3.0,1892.4,1892.2,1.07439023]
[1741924723821,8.2843,1892.4,1892.2,1.07439023]
[1741924724125,8.67799,1892.6,1892.2,6.35917023]
[1741924724614,13.96199,1892.6,1892.2,6.35917023]
[1741924724831,8.67799,1892.6,1892.2,1.07439023]
[1741924724997,8.28389,1892.6,1892.2,6.35921023]
[1741924725325,8.28387,1892.6,1892.2,1.07439023]
[1741924725512,8.28387,1892.6,1892.2,6.35913023]
[1741924725907,5.28387,1892.6,1892.2,6.35913023]
[1741924727107,5.28387,1892.6,1892.3,0.7948]
[1741924727535,17.485,1892.8,1892.4,5.28416]
[1741924727805,10.57601,1892.9,1892.4,5.28416]
[1741924727806,5.2929,1892.9,1892.4,5.28416]
[1741924728018,3.0,1892.8,1892.5,0.8321]
[1741924728221,3.0,1892.8,1892.5,6.11606]
[1741924729134,8.28318,1892.8,1892.5,0.8321]
[1741924730649,8.28318,1892.8,1892.5,1.87514617]
[1741924731453,0.01,1892.9,1892.6,5.2836]
[1741924731615,3.01,1892.9,1892.6,5.2836]
[1741924733847,3.01,1892.9,1892.6,5.0336]
[1741924734057,3.01,1892.9,1892.8,6.09107]
[1741924734058,0.01,1892.9,1892.8,6.09107]
[1741924734632,0.01,1892.9,1892.8,6.14389816]
[1741924734828,0.01,1892.9,1892.8,7.27994424]
[1741924735045,0.01,1892.9,1892.8,8.08784424]
[1741924735551,0.01,1892.9,1892.8,8.03501608]
[1741924736554,0.01,1892.9,1892.8,8.08783995]
[1741924737378,0.01,1892.9,1892.8,8.03501608]
[1741924738222,0.01,1892.9,1892.8,8.08783995]
[1741924741461,0.01,1892.9,1892.8,8.03501608]
[1741924742258,0.01,1892.9,1892.8,9.1522543]
[1741924742558,0.01,1892.9,1892.8,9.09943176]
[1741924744957,0.01,1892.9,1892.8,3.81626176]
[1741924746072,0.01,1892.9,1892.8,9.09943176]
[1741924748355,0.01,1892.9,1892.8,3.81626176]
[1741924748523,0.01,1892.9,1892.8,9.09943176]
[1741924751840,0.01,1892.9,1892.8,3.81626176]
[1741924753358,0.01,1892.9,1892.8,6.86931568]
[1741924754042,0.01,1892.9,1892.8,12.20531074]
[1741924754238,0.01,1892.9,1892.8,4.997]
[1741924754431,0.01,1892.9,1892.8,5.04982304]
[1741924755274,0.01,1892.9,1892.8,10.28017]
[1741924755435,0.01,1892.9,1892.8,12.13773026]
[1741924756478,0.01,1892.9,1892.8,13.19115898]
[1741924757338,0.01,1892.9,1892.8,14.51015898]
[1741924763078,0.01,1892.9,1892.8,24.55015898]
[1741924765290,0.01,1892.9,1892.8,24.00015898]
[1741924768510,0.01,1892.9,1892.8,25.80464559]
[1741924772221,0.01,1892.9,1892.8,26.35464559]
[1741924779004,0.7632,1893.6,1893.5,7.08570661]
[1741924779204,0.7713,1894.0,1893.7,5.28063]
[1741924779519,0.7713,1893.9,1893.5,5.28107]
[1741924779723,0.7713,1893.8,1893.5,5.28122]
[1741924779944,0.7713,1893.8,1893.6,5.2808]
[1741924780109,0.7713,1893.8,1893.7,7.08514661]
[1741924780440,0.7713,1893.8,1893.7,5.28066]
[1741924780628,0.7713,1893.8,1893.6,10.56163]
[1741924781018,0.7713,1893.8,1893.6,5.2808]
[1741924781834,0.7713,1893.8,1893.6,10.56161]
[1741924782045,0.7713,1893.8,1893.6,5.28078]
[1741924782470,0.7713,1893.8,1893.7,5.28066]
[1741924786547,0.7713,1893.8,1893.6,5.28078]
[1741924788740,0.7713,1893.8,1893.6,5.2960948]
[1741924789047,0.7713,1893.8,1893.6,5.31437664]
[1741924789816,0.7713,1893.8,1893.6,0.03359664]
[1741924790020,5.28066,1893.7,1893.6,0.03359664]
[1741924790238,17.68734737,1893.7,1893.6,0.03359664]
[1741924790421,14.681456,1893.7,1893.6,0.03359664]
[1741924790618,9.400796,1893.7,1893.6,0.03359664]
[1741924792433,14.681456,1893.7,1893.6,0.03359664]
[1741924795149,0.8016,1893.7,1893.6,0.03359664]
[1741924800353,6.08226,1893.7,1893.6,0.03359664]
[1741924801275,9.08226,1893.7,1893.6,0.03359664]
[1741924802520,0.8016,1893.7,1893.6,0.03359664]
[1741924802720,0.40066273,1894.4,1893.7,5.28066]
[1741924802960,0.77,1894.3,1894.0,10.55937]
[1741924803163,6.04925,1894.3,1893.8,5.808226]
[1741924803336,6.04925,1894.3,1893.8,11.14125361]
[1741924803526,0.77,1894.3,1893.9,5.27992]
[1741924803850,0.77,1894.3,1893.8,5.808226]
[1741924803851,5.27931,1894.2,1893.7,0.787]
[1741924804053,0.7519,1894.0,1893.6,15.58910664]
[1741924804252,0.7519,1894.0,1893.8,5.28023]
[1741924804440,0.7519,1894.3,1893.9,5.27997]
[1741924804642,6.0309,1894.3,1893.8,6.03563]
[1741924804984,5.27932,1894.2,1893.7,5.28065]
[1741924805156,5.27932,1894.2,1893.7,6.91508366]
[1741924805339,5.27932,1894.2,1893.8,5.28035]
[1741924805544,6.0309,1894.3,1893.8,5.28035]
[1741924805735,6.0309,1894.3,1893.9,5.28007]
[1741924805935,6.0309,1894.3,1893.8,5.28035]
[1741924806254,11.31002,1894.3,1893.8,5.97182837]
[1741924806556,6.0309,1894.3,1893.8,5.97170837]
[1741924806758,11.31002,1894.3,1893.8,5.97170837]
[1741924806920,11.31005,1894.3,1893.8,5.97170837]
[1741924807463,11.31006,1894.3,1893.8,5.97170837]
[1741924807656,6.0309,1894.3,1893.8,5.97170837]
[1741924807854,0.8006,1894.3,1893.6,11.06372664]
[1741924808160,0.8006,1894.0,1893.7,5.28065]
[1741924808859,10.55843,1894.3,1893.8,5.28038]
[1741924808860,5.27942,1894.2,1893.8,5.28038]
[1741924809157,0.7602,1894.2,1893.8,5.28038]
[1741924809350,0.7602,1894.2,1893.9,0.528038]
[1741924810865,0.7602,1894.2,1893.6,11.06371664]
[1741924811168,6.09754,1893.9,1893.6,0.03359664]
[1741924811360,5.28039,1893.8,1893.6,0.03359664]
[1741924811539,6.09806,1893.7,1893.6,0.03359664]
[1741924812060,0.8174,1893.7,1893.6,0.03359664]
[1741924813069,0.8118,1894.2,1893.8,5.28017]
[1741924813256,6.09113,1894.2,1893.8,5.28017]
[1741924813454,7.303243,1894.2,1893.8,5.28017]
[1741924813763,2.023913,1894.2,1893.8,5.28017]
[1741924813961,0.8118,1894.2,1893.8,5.28017]
[1741924814154,6.0911,1894.2,1893.7,6.10636]
[1741924814459,6.0911,1894.2,1893.7,0.8257]
[1741924814460,3.8118,1894.2,1893.7,0.8257]
[1741924814642,5.2797,1894.1,1893.6,6.07086664]
[1741924815054,10.55942,1894.1,1893.6,6.07086664]
[1741924815357,5.27967,1894.1,1893.6,0.78999664]
[1741924815558,5.27967,1894.1,1893.6,0.03359664]
[1741924815559,5.28003,1894.0,1893.6,0.03359664]
[1741924816064,0.7584,1893.8,1893.6,0.03359664]
[1741924816364,11.31953,1893.8,1893.6,0.03359664]
[1741924816657,1.131953,1893.7,1893.6,0.03359664]
[1741924816863,7.171013,1893.7,1893.6,0.03359664]
[1741924817559,1.890353,1893.7,1893.6,0.03359664]
[1741924818062,1.131953,1893.7,1893.6,0.03359664]
[1741924818270,6.05781,1893.8,1893.6,0.03359664]
[1741924818436,3.7773,1893.8,1893.6,0.03359664]
[1741924819163,9.0578,1893.8,1893.6,0.03359664]
[1741924821473,3.7773,1893.8,1893.6,0.03359664]
[1741924822160,3.0,1893.8,1893.6,0.03359664]
[1741924823038,8.28049,1893.8,1893.6,0.03359664]
[1741924823972,5.28066,1893.7,1893.6,0.03359664]
[1741924824267,6.06236,1893.7,1893.6,0.03359664]
[1741924825270,5.28066,1893.7,1893.6,0.03359664]
[1741924827069,9.06219,1893.8,1893.6,0.03359664]
[1741924827257,0.906219,1893.8,1893.6,0.85749664]
[1741924827478,5.28002,1894.0,1893.6,0.85749664]
[1741924827479,3.0,1894.0,1893.6,6.13832664]
[1741924827660,8.28003,1894.0,1893.6,6.13832664]
[1741924828369,13.5601,1894.0,1893.6,0.85749664]
[1741924829062,8.28002,1894.0,1893.6,6.13835664]
[1741924831780,13.56009,1894.0,1893.6,6.13835664]
[1741924831943,5.28012,1893.9,1893.6,0.85749664]
[1741924832290,3.0,1894.0,1893.6,0.85749664]
[1741924832647,8.27993,1894.0,1893.6,6.13839664]
[1741924833271,8.27993,1894.0,1893.6,6.13824664]
[1741924833447,8.27993,1894.0,1893.6,11.41905664]
[1741924833773,5.27927,1894.2,1893.8,5.28021]
[1741924833963,3.0,1894.1,1893.9,0.7894]
[1741924837242,9.08865,1894.3,1893.9,0.7894]
[1741924837978,3.0,1894.3,1893.9,6.06943]
[1741924838159,8.27903,1894.3,1893.9,6.06943]
[1741924839087,5.2784,1894.6,1894.2,0.7923]
[1741924839262,5.27847,1894.5,1894.2,0.7923]
[1741924840290,8.2784,1894.6,1894.2,0.7923]
[1741924840462,8.2784,1894.6,1894.2,6.07155]
[1741924840463,10.55675,1894.6,1894.2,6.07155]
[1741924840866,3.0,1894.5,1894.2,6.07155]
[1741924841384,3.0,1894.5,1894.2,0.7923]
[1741924842190,3.0,1894.5,1894.2,6.07151]
[1741924842514,5.27872,1894.4,1894.2,0.7923]
[1741924843268,5.27872,1894.4,1894.0,5.7509]
[1741924843476,8.27848,1894.5,1894.0,11.03048]
[1741924843675,8.27848,1894.5,1894.0,16.31009]
[1741924843886,8.27848,1894.5,1894.1,5.27952]
[1741924844509,8.27848,1894.5,1894.0,16.31018]
[1741924844674,8.27848,1894.5,1894.1,5.27953]
[1741924847300,5.27873,1894.4,1894.0,13.665498]
[1741924847499,5.27873,1894.4,1894.0,11.03048]
[1741924848995,13.55712,1894.5,1894.0,16.31007]
[1741924849329,8.27848,1894.5,1894.1,5.27952]
[1741924850003,8.27848,1894.5,1894.2,0.7801]
[1741924851223,5.27873,1894.4,1894.0,10.27278]
[1741924851525,5.27873,1894.4,1894.0,12.832043]
[1741924851814,9.07598,1894.5,1894.0,18.111633]
[1741924851815,14.35466,1894.5,1894.0,18.111633]
[1741924852015,14.35466,1894.5,1894.0,12.831853]
[1741924853101,5.27876,1894.4,1894.0,12.831853]
[1741924853617,9.07598,1894.5,1894.0,12.831853]
[1741924853789,14.35465,1894.5,1894.0,12.831853]
[1741924854621,9.07598,1894.5,1894.1,5.27943]
[1741924854801,8.27848,1894.5,1894.1,6.07883]
[1741924855625,3.0,1894.5,1894.1,11.35817]
[1741924855812,3.0,1894.5,1894.1,13.2492133]
[1741924857121,3.0,1894.5,1894.1,7.9697833]
[1741924857303,8.27858,1894.5,1894.1,7.9697833]
[1741924863343,3.0,1894.5,1894.2,5.27924]
[1741924864146,3.0,1894.5,1894.1,7.9697833]
[1741924864346,8.27844,1894.5,1894.1,7.9697833]
[1741924865928,3.0,1894.5,1894.2,5.27914]
[1741924866678,8.27844,1894.5,1894.1,7.9697833]
[1741924867066,5.279,1894.3,1894.0,10.27281]
[1741924867235,5.279,1894.3,1894.0,4.993]
[1741924867580,5.27966,1894.1,1893.7,11.3189]
[1741924867740,8.27943,1894.2,1893.8,5.28027]
[1741924867945,5.27957,1894.1,1893.7,11.31878]
[1741924868150,13.55893,1894.2,1893.8,5.28038]
[1741924868350,8.27943,1894.2,1893.8,5.28038]
[1741924868765,13.55887,1894.2,1893.7,6.03818]
[1741924869869,5.27955,1894.1,1893.7,6.03818]
[1741924870176,10.55929,1894.1,1893.7,0.7577]
[1741924870387,10.55921,1894.1,1893.7,6.03835]
[1741924870538,5.27955,1894.1,1893.7,6.03835]
[1741924870890,5.27955,1894.1,1893.7,7.67272166]
[1741924871189,8.27927,1894.2,1893.8,5.28038]
[1741924871483,13.5588,1894.2,1893.7,7.67259166]
[1741924871651,3.0,1894.2,1893.8,5.28021]
[1741924871853,8.27927,1894.2,1893.8,5.28021]
[1741924873570,3.0,1894.2,1893.8,5.28021]
[1741924874170,8.27938,1894.2,1893.7,7.725533]
[1741924874371,5.27956,1894.1,1893.7,7.725533]
[1741924874533,5.27956,1894.1,1893.7,7.67273166]
[1741924875773,8.27938,1894.2,1893.7,7.67246166]
[1741924876069,8.27938,1894.2,1893.8,5.28034]
[1741924876850,8.27938,1894.2,1893.8,10.56048]
[1741924877370,8.27938,1894.2,1893.8,5.28014]
[1741924877567,8.27938,1894.2,1893.8,6.04736117]
[1741924877755,8.27938,1894.2,1893.8,11.32763117]
[1741924878267,8.27938,1894.2,1893.8,6.04736117]
[1741924878572,3.0,1894.2,1893.8,6.10027241]
[1741924878778,8.27927,1894.2,1893.8,6.04743117]
[1741924879575,13.55879,1894.2,1893.8,6.04743117]
[1741924879951,8.27927,1894.2,1893.8,11.32766117]
[1741924880559,8.27927,1894.2,1893.8,6.04743117]
[1741924880976,8.27927,1894.2,1893.8,0.76722117]
[1741924881176,0.8035,1894.0,1893.7,5.28065]
[1741924881679,6.08334,1894.0,1893.6,5.31449664]
[1741924881851,6.08334,1894.0,1893.6,5.31450664]
[1741924883577,6.08334,1894.0,1893.6,0.03359664]
[1741924884471,6.08334,1894.0,1893.6,5.31450664]
[1741924884787,6.08334,1894.0,1893.6,0.03359664]
[1741924884788,1.939789,1894.0,1893.6,0.03359664]
[1741924885000,5.28066,1893.7,1893.6,0.03359664]
[1741924885785,8.28066,1893.7,1893.6,0.03359664]
[1741924885987,9.05586,1893.7,1893.6,0.03359664]
[1741924890097,9.46122783,1893.7,1893.6,0.03359664]
[1741924892102,9.40842952,1893.7,1893.6,0.03359664]
[1741924894006,5.28134,1893.5,1893.1,1.80725485]
[1741924894303,5.28134,1893.5,1893.1,1.99341349]
[1741924895209,5.28157,1893.4,1893.1,0.7562]
[1741924895823,5.2818,1893.3,1892.9,5.28286]
[1741924895980,10.56383,1893.3,1892.9,0.8117]
[1741924896186,5.28206,1893.2,1892.9,0.8117]
[1741924896923,5.2818,1893.3,1892.9,0.8117]
[1741924897211,3.8283,1893.4,1893.0,5.28253]
[1741924897380,9.10986,1893.4,1893.0,5.28253]
[1741924897582,8.28156,1893.4,1893.0,5.28253]
[1741924898403,8.28156,1893.4,1893.1,0.8117]
[1741924898725,8.28095,1893.6,1893.2,5.2818]
[1741924898931,8.28095,1893.6,1893.3,0.52818]
[1741924899086,6.03,1893.8,1893.5,0.8117]
[1741924899287,5.28022,1893.9,1893.5,0.8117]
[1741924900322,5.28043,1893.8,1893.5,0.8117]
[1741924901692,10.56059,1893.9,1893.5,0.8117]
[1741924901893,10.56059,1893.9,1893.5,1.421016]
[1741924902597,10.56046,1893.9,1893.5,1.421016]
[1741924902804,10.56047,1893.9,1893.5,1.421016]
[1741924903417,5.28022,1893.9,1893.5,1.421016]
[1741924903739,5.28022,1893.9,1893.5,6.702236]
[1741924903912,5.28022,1893.9,1893.6,0.6702236]
[1741924904113,5.28022,1893.9,1893.5,6.702236]
[1741924904311,10.56053,1893.9,1893.5,1.421016]
[1741924904503,5.28022,1893.9,1893.5,6.702216]
[1741924906334,3.0,1894.0,1893.6,5.28067]
[1741924906532,3.0,1894.0,1893.7,6.570597]
[1741924906922,3.0,1894.0,1893.7,1.290167]
[1741924907139,3.0,1894.1,1893.7,6.570807]
[1741924907604,8.27958,1894.1,1893.7,1.290167]
[1741924907805,5.27998,1894.0,1893.7,1.290167]
[1741924908427,5.28014,1893.9,1893.7,1.290167]
[1741924908601,5.28014,1893.9,1893.5,11.05861]
[1741924909004,5.28014,1893.9,1893.5,5.7774]
[1741924909201,5.28044,1893.8,1893.5,0.7854]
[1741924909450,5.28078,1893.7,1893.3,6.06706]
[1741924909647,5.28078,1893.7,1893.4,0.606706]
[1741924910262,5.28044,1893.8,1893.4,0.606706]
[1741924910787,5.28067,1893.7,1893.4,0.606706]
[1741924912376,5.28067,1893.7,1893.3,6.06692]
[1741924913180,5.28067,1893.7,1893.3,11.34856]
[1741924913345,5.28067,1893.7,1893.3,6.06692]
[1741924915247,5.28094,1893.6,1893.3,0.7854]
[1741924915442,5.28132,1893.5,1893.3,0.7854]
[1741924915658,5.28132,1893.5,1893.1,0.7853]
[1741924915659,10.5628,1893.5,1893.1,0.7853]
[1741924915969,5.28161,1893.4,1893.1,0.7853]
[1741924916169,5.28161,1893.4,1893.1,1.392065]
[1741924916774,5.28161,1893.4,1893.1,0.7853]
[1741924920276,10.56334,1893.4,1893.1,0.7853]
[1741924921174,5.28181,1893.3,1893.1,0.7853]
[1741924921372,5.28161,1893.4,1893.1,0.7853]
[1741924921953,10.56334,1893.4,1893.1,0.7853]
[1741924922152,5.28188,1893.3,1893.1,0.7853]
[1741924922371,5.28161,1893.4,1893.1,0.7853]
[1741924923494,10.56257,1893.5,1893.1,0.7853]
[1741924923667,10.5472552,1893.5,1893.1,0.7853]
[1741924923998,8.26282816,1893.6,1893.2,5.2819]
[1741924925393,2.98171816,1893.6,1893.3,0.7713]
[1741924925559,5.28069,1893.7,1893.3,6.05296]
[1741924925757,10.56161,1893.7,1893.3,0.7713]
[1741924926056,5.28095,1893.6,1893.3,0.7713]
[1741924926748,5.28127,1893.5,1893.3,0.7713]
[1741924926977,10.56202,1893.6,1893.3,0.7713]
[1741924927249,5.28139,1893.5,1893.2,0.7511]
[1741924927957,10.56289,1893.5,1893.2,0.7511]
[1741924928278,5.28139,1893.5,1893.2,0.7511]
[1741924928482,3.0,1893.5,1893.2,0.7511]
[1741924928684,3.0,1893.5,1893.2,6.03314]
[1741924928886,5.28098,1893.6,1893.3,6.08138]
[1741924929549,8.28073,1893.7,1893.3,6.08138]
[1741924929755,5.28098,1893.6,1893.3,0.7996]
[1741924934887,13.56167,1893.7,1893.3,0.7996]
[1741924935072,5.281,1893.6,1893.3,0.7996]
[1741924935390,5.281,1893.6,1893.3,1.5208989]
[1741924936207,3.0,1893.7,1893.5,0.7617]
[1741924936513,3.0,1893.7,1893.5,6.04291]
[1741924937106,3.0,1893.8,1893.5,6.04291]
[1741924937304,8.28041,1893.8,1893.5,0.7617]
[1741924937506,13.56103,1893.8,1893.5,0.7617]
[1741924937805,5.28066,1893.7,1893.5,0.7617]
[1741924938004,3.0,1893.8,1893.5,0.7617]
[1741924938205,3.0,1893.8,1893.5,6.04278]
[1741924938409,3.0,1893.8,1893.5,6.647058]
[1741924938561,3.0,1893.8,1893.5,11.928088]
[1741924938960,3.0,1893.8,1893.6,0.7617]
[1741924940700,5.28066,1893.7,1893.6,0.7617]
[1741924940904,8.28042,1893.8,1893.6,0.7617]
[1741924941105,3.0,1893.8,1893.6,0.7617]
[1741924941311,12.14195,1894.1,1893.6,6.04262]
[1741924941312,8.2799,1894.0,1893.6,6.04262]
[1741924941602,8.27985,1894.0,1893.6,6.04262]
[1741924942099,5.27985,1894.0,1893.6,7.175002]
[1741924942502,0.8322,1894.3,1893.7,3.7541]
[1741924942802,10.55833,1894.3,1893.9,5.2801]
[1741924943210,5.27927,1894.2,1893.8,6.03422]
[1741924943502,5.27911,1894.3,1893.8,6.03422]
[1741924943880,5.28141168,1894.4,1894.2,5.27914]
[1741924943881,0.00269168,1894.4,1894.2,5.27914]
[1741924944092,0.00269168,1894.4,1894.3,0.7541]
[1741924946879,0.00269168,1894.4,1894.3,6.03309]
[1741924947103,0.00269168,1894.4,1894.3,5.27899]
[1741924947307,0.00269168,1894.4,1894.3,7.1416888]
[1741924948311,0.00269168,1894.4,1894.3,7.088902]
[1741924950583,0.00269168,1894.4,1894.3,17.128902]
[1741924950815,0.00269168,1894.4,1894.3,18.18133855]
[1741924951302,0.00269168,1894.4,1894.3,18.73133855]
[1741924951688,0.00269168,1894.4,1894.3,21.73133855]
[1741924952089,0.00084335,1894.4,1894.3,21.73133855]
[1741924953317,5.82507,1895.8,1895.3,6.03013]
[1741924953318,11.10014,1895.8,1895.3,6.03013]
[1741924953619,5.27545,1895.6,1895.4,0.603013]
[1741924953807,5.27545,1895.6,1895.2,5.27644]
[1741924954007,5.27545,1895.6,1895.1,11.01971]
[1741924954415,5.27545,1895.6,1895.1,11.01967]
[1741924954795,5.27545,1895.6,1895.2,5.27648]
[1741924954995,6.07569,1895.7,1895.2,5.27648]
[1741924955349,5.27555,1895.6,1895.1,11.01967]
[1741924955621,10.55099,1895.6,1895.1,18.402237]
[1741924955924,5.27549,1895.6,1895.2,5.27648]
[1741924956290,10.551,1895.6,1895.2,5.27648]
[1741924956527,0.8006,1895.7,1895.0,10.04]
[1741924956528,5.27567,1895.5,1895.0,10.04]
[1741924956834,6.07592,1895.7,1895.1,5.27661]
[1741924957004,0.607592,1895.6,1895.2,5.27648]
[1741924957190,5.883082,1895.6,1895.2,5.27648]
[1741924957395,6.07592,1895.7,1895.3,5.27614]
[1741924957633,6.07581,1895.7,1895.2,0.8114]
[1741924957806,6.07581,1895.7,1895.3,5.27606]
[1741924957807,0.8006,1895.7,1895.3,5.27606]
[1741924958007,0.8006,1895.7,1895.4,5.27587]
[1741924958204,0.55,1895.8,1895.6,5.27513]
[1741924958730,0.55,1895.8,1895.5,0.7868]
[1741924958731,5.82499,1895.8,1895.5,0.7868]
[1741924958899,6.57629,1895.8,1895.4,5.27565]
[1741924959323,6.57629,1895.8,1895.3,5.7748]
[1741924959513,5.27553,1895.6,1895.1,16.1035]
[1741924959718,5.27553,1895.6,1895.2,5.82555339]
[1741924959915,5.27548,1895.6,1895.2,5.82555339]
[1741924960620,5.27576,1895.5,1895.2,0.54918339]
[1741924960815,6.07996,1895.5,1895.1,15.31656]
[1741924961402,5.27594,1895.4,1895.1,10.04]
[1741924961597,5.27594,1895.4,1895.0,5.27702]
[1741924961999,6.07996,1895.5,1895.1,5.27672]
[1741924964325,5.27595,1895.4,1895.0,5.27683]
[1741924964632,5.27595,1895.4,1895.0,6.913075]
[1741924964927,11.35576,1895.5,1895.0,12.189935]
[1741924966202,6.07996,1895.5,1895.0,12.189935]
[1741924966735,6.07996,1895.5,1895.1,5.27661]
[1741924967036,0.8042,1895.5,1895.1,10.55319]
[1741924967235,0.8042,1895.5,1895.2,6.331779]
[1741924967433,6.05937,1895.6,1895.2,7.151179]
[1741924967735,6.0595,1895.6,1895.2,7.151189]
[1741924967934,3.0,1895.6,1895.2,7.151189]
[1741924968514,8.27539,1895.6,1895.2,7.151189]
[1741924968831,13.55103,1895.6,1895.2,1.874719]
[1741924969030,5.27568,1895.5,1895.1,5.27675]
[1741924969236,13.55098,1895.6,1895.1,5.27657]
[1741924969735,5.27573,1895.5,1895.1,5.27657]
[1741924969931,5.27573,1895.5,1895.0,6.06323]
[1741924970137,5.27608,1895.4,1895.0,0.7862]
[1741924970370,5.27608,1895.4,1894.9,10.27031]
[1741924970371,5.27634,1895.3,1894.9,5.27731]
[1741924970527,5.27663,1895.2,1894.8,6.06378]
[1741924971022,5.27623,1895.3,1894.9,5.27721]
[1741924971223,5.27623,1895.3,1894.8,6.06369]
[1741924971426,10.55256,1895.3,1894.8,6.06361]
[1741924971625,6.09553,1895.4,1894.9,5.2773]
[1741924971805,5.27629,1895.3,1894.9,5.27716]
[1741924972329,5.27593,1895.4,1895.0,0.7862]
[1741924972637,5.27593,1895.4,1895.0,6.06313]
[1741924973235,5.2763,1895.3,1895.0,0.7862]
[1741924973538,5.27649,1895.2,1894.8,7.705201]
[1741924973840,5.2763,1895.3,1894.9,6.0477901]
[1741924975334,5.27593,1895.4,1895.0,6.09419]
[1741924976004,3.0,1895.4,1895.1,5.27674]
[1741924976204,5.27566,1895.5,1895.1,5.27674]
[1741924977535,5.27566,1895.5,1895.0,6.09419]
[1741924977863,5.27548,1895.6,1895.2,5.27631]
[1741924978012,5.27548,1895.6,1895.1,11.662779]
[1741924978213,3.0,1895.5,1895.1,11.662779]
[1741924979910,3.0,1895.5,1895.2,5.3292394]
[1741924980240,8.27566,1895.5,1895.1,16.939419]
[1741924980539,9.07476,1895.5,1895.1,11.662759]
[1741924980921,14.35063,1895.5,1895.1,11.662759]
[1741924981342,9.07476,1895.5,1895.1,11.662759]
[1741924981540,9.07476,1895.5,1895.2,1.1662759]
[1741924982944,5.27633,1895.3,1895.1,5.7767]
[1741924983236,5.27615,1895.4,1895.1,4.989]